fUST/lending_fUST_20250627
["ID","MTS","AMOUNT","RATE_DAILY","PERIOD"]
[367883626,1750954243122,-306.872382,0.00019325,2]
[367883628,1750954243131,-306.872382,0.00019325,2]
[367883631,1750954243141,-306.872382,0.00019325,2]
[367883634,1750954243150,-306.872382,0.00019325,2]
[367883637,1750954243159,-306.872382,0.00019325,2]
[367883640,1750954243168,-306.872382,0.00019325,2]
[367883643,1750954243178,-306.872382,0.00019325,2]
[367883646,1750954243187,-317.669459,0.00019325,2]
[367883648,1750954243197,-317.669459,0.00019325,2]
[367883650,1750954243206,-317.669459,0.00019325,2]
[367883652,1750954243216,-317.669459,0.00019325,2]
[367883654,1750954243227,-317.669459,0.00019325,2]
[367883656,1750954243237,-317.669459,0.00019325,2]
[367883658,1750954243246,-317.669459,0.00019325,2]
[367883660,1750954243255,-317.669459,0.00019325,2]
[367883662,1750954243266,-317.669459,0.00019325,2]
[367883664,1750954243275,-317.669459,0.00019325,2]
[367883666,1750954243284,-317.669459,0.00019325,2]
[367883668,1750954243293,-317.669459,0.00019325,2]
[367883670,1750954243303,-317.669459,0.00019325,2]
[367883672,1750954243315,-317.669459,0.00019325,2]
[367883674,1750954243324,-317.669459,0.00019325,2]
[367883676,1750954243333,-317.669459,0.00019325,2]
[367883678,1750954243343,-317.669459,0.00019325,2]
[367883680,1750954243352,-317.669459,0.00019325,2]
[367883682,1750954243362,-151.0,0.00019325,2]
[367883684,1750954243372,-717.759722,0.00019325,2]
[367883686,1750954243381,-717.759722,0.00019325,2]
[367883688,1750954243390,-3723.857893,0.00019325,2]
[367883690,1750954243399,-3723.857893,0.00019325,2]
[367883692,1750954243409,-228.403767,0.00019325,2]
[367883694,1750954243418,-228.403767,0.00019325,2]
[367883696,1750954243427,-344.13661,0.00019325,2]
[367883698,1750954243436,-344.13661,0.00019325,2]
[367883700,1750954243446,-151.0,0.00019325,2]
[367883702,1750954243456,-151.0,0.00019325,2]
[367883704,1750954243465,-237.355872,0.00019326,2]
[367883706,1750954243475,-237.355872,0.00019326,2]
[367883708,1750954243484,-237.355872,0.00019326,2]
[367883710,1750954243494,-237.355872,0.00019326,2]
[367883712,1750954243504,-237.355872,0.00019326,2]
[367883714,1750954243514,-237.355872,0.00019326,2]
[367883717,1750954243533,-237.355872,0.00019326,2]
[367883719,1750954243544,-237.355872,0.00019326,2]
[367883721,1750954243555,-237.355872,0.00019326,2]
[367883723,1750954243565,-237.355872,0.00019326,2]
[367883725,1750954243575,-237.355872,0.00019326,2]
[367883727,1750954243585,-237.355872,0.00019326,2]
[367883729,1750954243595,-237.355872,0.00019326,2]
[367883731,1750954243604,-237.355872,0.00019326,2]
[367883733,1750954243614,-237.355872,0.00019326,2]
[367883735,1750954243624,-237.355872,0.00019326,2]
[367883737,1750954243633,-151.0,0.00019326,2]
[367883739,1750954243643,-151.0,0.00019326,2]
[367883741,1750954243652,-151.0,0.00019326,2]
[367883743,1750954243662,-151.0,0.00019326,2]
[367883745,1750954243672,-151.0,0.00019326,2]
[367883747,1750954243682,-151.0,0.00019326,2]
[367883749,1750954243692,-151.0,0.00019326,2]
[367883752,1750954243703,-151.0,0.00019326,2]
[367883754,1750954243713,-151.0,0.00019326,2]
[367883756,1750954243723,-246.811581,0.00019326,2]
[367883758,1750954243732,-306.872382,0.00019326,2]
[367883760,1750954243742,-306.872383,0.00019326,2]
[367883762,1750954243751,-151.0,0.00019326,2]
[367883764,1750954243761,-202.632403,0.00019326,2]
[367883766,1750954243772,-317.669459,0.00019326,2]
[367883768,1750954243781,-317.669464,0.00019326,2]
[367883770,1750954243792,-151.0,0.00019326,2]
[367883772,1750954243801,-459.55804,0.00019326,2]
[367883774,1750954243811,-459.55804,0.00019326,2]
[367883776,1750954243821,-1000.0,0.00019326,2]
[367883778,1750954243831,-237.355872,0.00019328,2]
[367883780,1750954243840,-237.355872,0.00019328,2]
[367883782,1750954243850,-151.0,0.00019328,2]
[367883784,1750954243859,-151.0,0.00019328,2]
[367883786,1750954243868,-151.0,0.00019328,2]
[367883788,1750954243878,-237.355872,0.00019329,2]
[367883790,1750954243887,-237.355872,0.00019329,2]
[367883792,1750954243896,-151.0,0.00019329,2]
[367883794,1750954243906,-151.0,0.00019329,2]
[367883796,1750954243915,-196.462667,0.00019329,2]
[367883798,1750954243926,-196.462667,0.00019329,2]
[367883800,1750954243936,-151.0,0.00019329,2]
[367883802,1750954243946,-151.0,0.00019329,2]
[367883804,1750954243955,-151.0,0.00019329,2]
[367883806,1750954243965,-151.0,0.00019329,2]
[367883808,1750954243975,-344.13661,0.00019329,2]
[367883810,1750954243986,-344.13661,0.00019329,2]
[367883812,1750954243996,-151.0,0.00019329,2]
[367883814,1750954244006,-229.874369,0.00019329,2]
[367883816,1750954244017,-151.0,0.00019383,2]
[367883818,1750954244027,-151.0,0.000194,2]
[367883820,1750954244036,-4588.07040311,0.00019413,2]
[367883822,1750954244046,-587.0,0.00019444,2]
[367883824,1750954244056,-587.0,0.00019444,2]
[367883826,1750954244066,-151.0,0.000195,2]
[367883828,1750954244077,-151.0,0.000195,2]
[367883830,1750954244087,-384626.89993,0.00019525,2]
[367883832,1750954244096,-5000.0,0.00019526,2]
[367883834,1750954244106,-25000.0,0.00019526,2]
[367883836,1750954244116,-717.759722,0.00019567,2]
[367883838,1750954244125,-717.759722,0.00019567,2]
[367883840,1750954244135,-3723.857893,0.00019567,2]
[367883842,1750954244144,-3723.857893,0.00019567,2]
[367883844,1750954244154,-228.403767,0.00019567,2]
[367883846,1750954244165,-228.403767,0.00019567,2]
[367883848,1750954244175,-151.0,0.000196,2]
[367883850,1750954244185,-4588.07040311,0.00019606,2]
[367883853,1750954244195,-1138.56694991,0.00019614,2]
[367883854,1750954244204,-159.2154015,0.00019622,2]
[367883856,1750954244214,-159.2154015,0.00019622,2]
[367883858,1750954244223,-204.3625189,0.00019622,2]
[367883860,1750954244236,-168.0,0.00019655,2]
[367883862,1750954244245,-1000.0,0.00019665,2]
[367883865,1750954244255,-500.0,0.00019665,2]
[367883867,1750954244267,-717.759722,0.00019675,2]
[367883869,1750954244277,-717.759722,0.00019675,2]
[367883871,1750954244286,-3723.857893,0.00019675,2]
[367883873,1750954244296,-3723.857893,0.00019675,2]
[367883874,1750954244306,-228.403767,0.00019675,2]
[367883876,1750954244316,-228.403767,0.00019675,2]
[367883878,1750954244326,-151.0,0.00019675,2]
[367883880,1750954244336,-344.13661,0.00019675,2]
[367883882,1750954244346,-344.13661,0.00019675,2]
[367883885,1750954244356,-459.55804,0.00019675,2]
[367883887,1750954244366,-459.55804,0.00019675,2]
[367883889,1750954244375,-151.0,0.00019675,2]
[367883891,1750954244385,-151.0,0.000197,2]
[367883893,1750954244394,-151.0,0.000197,2]
[367883895,1750954244404,-459.55804,0.000197,2]
[367883897,1750954244414,-459.55804,0.000197,2]
[367883899,1750954244424,-153.0,0.000197,2]
[367883901,1750954244434,-203.94032,0.00019732,2]
[367883903,1750954244444,-1002.78026123,0.0001979,2]
[367883905,1750954244454,-151.0,0.000198,2]
[367883907,1750954244464,-151.0,0.000198,2]
[367883909,1750954244474,-151.0,0.000198,2]
[367883911,1750954244483,-151.0,0.000198,2]
[367883913,1750954244494,-151.0,0.000198,2]
[367883915,1750954244504,-151.0,0.000198,2]
[367883917,1750954244514,-151.0,0.000198,2]
[367883919,1750954244524,-151.0,0.000198,2]
[367883921,1750954244534,-151.0,0.000198,2]
[367883923,1750954244543,-151.0,0.000198,2]
[367883925,1750954244553,-151.0,0.000198,2]
[367883927,1750954244562,-262.57666,0.000198,2]
[367883929,1750954244572,-151.0,0.000198,2]
[367883931,1750954244581,-151.0,0.000198,2]
[367883933,1750954244591,-151.0,0.000198,2]
[367883935,1750954244604,-717.759722,0.000198,2]
[367883937,1750954244614,-717.759722,0.000198,2]
[367883939,1750954244623,-3723.857893,0.000198,2]
[367883941,1750954244633,-3723.857893,0.000198,2]
[367883943,1750954244643,-4588.07040311,0.000198,2]
[367883945,1750954244653,-228.403767,0.000198,2]
[367883947,1750954244662,-228.403767,0.000198,2]
[367883949,1750954244672,-344.13661,0.000198,2]
[367883951,1750954244681,-344.13661,0.000198,2]
[367883953,1750954244691,-344.13661,0.000198,2]
[367883955,1750954244701,-344.13661,0.000198,2]
[367883957,1750954244710,-459.55804,0.000198,2]
[367883959,1750954244719,-459.558039,0.000198,2]
[367883961,1750954244729,-151.0,0.000198,2]
[367883963,1750954244739,-151.0,0.000198,2]
[367883965,1750954244748,-7516.11865376,0.000198,2]
[367883967,1750954244758,-168.0,0.00019819,2]
[367883969,1750954244768,-1000.0,0.00019823,2]
[367883971,1750954244778,-168.0,0.0001986,2]
[367883973,1750954244788,-178.02557656,0.00019873,2]
[367883975,1750954244797,-500.0,0.00019873,2]
[367883977,1750954244807,-500.0,0.00019873,2]
[367883979,1750954244817,-500.0,0.00019873,2]
[367883981,1750954244826,-500.0,0.00019873,2]
[367883983,1750954244835,-500.0,0.00019873,2]
[367883985,1750954244845,-500.0,0.00019873,2]
[367883987,1750954244855,-580.01754329,0.00019873,2]
[367883989,1750954244864,-500.0,0.00019873,2]
[367883991,1750954244873,-500.0,0.00019873,2]
[367883993,1750954244883,-500.0,0.00019873,2]
[367883995,1750954244893,-500.0,0.00019873,2]
[367883997,1750954244903,-200.2532582,0.00019873,2]
[367883999,1750954244912,-500.0,0.00019873,2]
[367884001,1750954244922,-500.0,0.00019873,2]
[367884003,1750954244931,-500.0,0.00019873,2]
[367884005,1750954244941,-500.0,0.00019873,2]
[367884007,1750954244950,-500.0,0.00019873,2]
[367884009,1750954244960,-600.0,0.00019873,2]
[367884010,1750954244969,-500.0,0.00019873,2]
[367884011,1750954244979,-500.0,0.00019873,2]
[367884012,1750954244988,-500.43078147,0.00019873,2]
[367884013,1750954244998,-500.0,0.00019873,2]
[367884014,1750954245009,-500.0,0.00019873,2]
[367884015,1750954245018,-500.0,0.00019873,2]
[367884016,1750954245028,-432.95481487,0.00019873,2]
[367884017,1750954245038,-500.0,0.00019873,2]
[367884018,1750954245047,-500.0,0.00019873,2]
[367884019,1750954245057,-151.0,0.00019893,2]
[367884020,1750954245066,-561456.16148674,0.000199,2]
[367884021,1750954245089,-56051.48569788,0.000199,2]
[367884049,1750954245404,-500.0,0.00016333,2]
[367884051,1750954245415,-500.0,0.00016333,2]
[367884054,1750954245425,-500.0,0.00016333,2]
[367884056,1750954245436,-151.0,0.00019125,2]
[367884058,1750954245445,-151.0,0.00019125,2]
[367884059,1750954245455,-151.0,0.00019125,2]
[367884061,1750954245464,-151.0,0.00019126,2]
[367884064,1750954245474,-3663.9069546,0.000199,2]
[367884066,1750954245489,-2095.58264836,0.000199,2]
[367884068,1750954245503,-27208.36338481,0.000199,2]
[367884071,1750954245519,-35225.20102906,0.000199,2]
[367884073,1750954245534,-14507.67810565,0.000199,2]
[367884143,1750954246196,-447539.80383154,0.000199,2]
[367884229,1750954247037,152.25,0.000229,31]
[367884233,1750954247070,152.25,0.000229,31]
[367884237,1750954247100,152.25,0.000229,31]
[367884242,1750954247131,152.25,0.000229,31]
[367884246,1750954247169,152.25,0.000229,31]
[367884251,1750954247206,152.25,0.000229,31]
[367884256,1750954247243,152.25,0.000229,31]
[367884269,1750954247372,152.25,0.000229,31]
[367884274,1750954247405,152.25,0.000229,31]
[367884284,1750954247494,152.25,0.000229,31]
[367884288,1750954247528,152.25,0.000229,31]
[367884293,1750954247568,152.25,0.000229,31]
[367885775,1750954265241,700.0,0.000245,120]
[367885895,1750954472747,468.0,0.000246,120]
[367885898,1750954600221,-300.38911668,0.0001623,2]
[367885899,1750954600243,-672.11894312,0.00016323,2]
[367885900,1750954600266,-160.0,0.00016329,2]
[367885901,1750954600289,-13.0919402,0.0001633,2]
[367885902,1750954652498,1437.4943603,0.00015342,2]
[367885903,1750954757631,183.52734543,0.000222,69]
[367885904,1750954761602,2266.2355861,0.0001533,2]
[367885905,1750954762633,183.52734542,0.000222,69]
[367885906,1750954856092,230.0,0.000229,31]
[367885907,1750954856148,230.0,0.000229,31]
[367885908,1750954856210,230.0,0.000229,31]
[367885909,1750954856270,230.0,0.000229,31]
[367885910,1750954856329,230.0,0.000229,31]
[367885911,1750954856389,230.0,0.000229,31]
[367885912,1750954856459,230.0,0.000229,31]
[367885913,1750954856516,230.0,0.000229,31]
[367885914,1750954856574,230.0,0.000229,31]
[367885915,1750954856640,230.0,0.000229,31]
[367885916,1750954856698,230.0,0.000229,31]
[367885917,1750954856728,230.0,0.000229,31]
[367885918,1750954856767,230.0,0.000229,31]
[367885919,1750954856824,230.0,0.000229,31]
[367885920,1750954856889,230.0,0.000229,31]
[367885921,1750954856949,230.0,0.000229,31]
[367885922,1750954872081,1949.590888,0.00015341,2]
[367885923,1750954872389,208.9048167,0.00015341,2]
[367885924,1750954954038,-254.0659816,0.00016228,2]
[367885925,1750955007451,1515.6295173,0.00015327,2]
[367885927,1750955058913,-160.0,0.00016228,2]
[367885929,1750955115977,300.0,0.00023,30]
[367885931,1750955118265,10000.0,0.00015324,2]
[367885932,1750955130012,24900.0,0.00015324,2]
[367885933,1750955138483,476.9658786,0.00015741,2]
[367885934,1750955143081,238.4829393,0.00015827,2]
[367885938,1750955179684,267.393933,0.00013699,2]
[367885941,1750955223752,-240.42911652,0.0001622,2]
[367885942,1750955249658,183.52734542,0.000222,69]
[367885943,1750955249949,-199.20518931,0.0001622,2]
[367885944,1750955268562,3266.0,0.00023,30]
[367885947,1750955325535,6228.94646951,0.00015463,2]
[367885948,1750955325566,8606.47678349,0.00015463,2]
[367885969,1750955388900,164.872834,0.00015324,2]
[367885970,1750955389028,164.872834,0.00015339,2]
[367885971,1750955389240,164.872834,0.00015354,2]
[367885972,1750955389461,164.872834,0.0001537,2]
[367885973,1750955389657,164.872834,0.00015385,2]
[367885974,1750955389888,164.872834,0.000154,2]
[367885975,1750955403125,19676.8434833,0.00016,2]
[367885976,1750955418822,-164.06415745,0.0001622,2]
[367885977,1750955418844,-5.07100998,0.0001622,2]
[367886027,1750955432207,-196.56459804,0.0001622,2]
[367886029,1750955432216,-214.60946617,0.0001622,2]
[367886031,1750955432226,-76.95291109,0.00016225,2]
[367886033,1750955432237,-4511.11749202,0.00016225,2]
[367886035,1750955432247,-1200.0,0.00016314,2]
[367886037,1750955432257,-375.33,0.00016315,3]
[367886039,1750955432266,-187.66,0.00016315,3]
[367886041,1750955432275,-563.03,0.00016315,3]
[367886043,1750955432284,-160.0,0.00016318,2]
[367886045,1750955432294,-300.0,0.00016322,2]
[367886047,1750955432304,-300.0,0.00016322,2]
[367886048,1750955432314,-300.0,0.00016322,2]
[367886051,1750955432324,-300.0,0.00016322,2]
[367886053,1750955432333,-900.0,0.00016324,2]
[367886055,1750955432344,-500.0,0.00016324,2]
[367886057,1750955432354,-500.0,0.00016324,2]
[367886059,1750955432365,-500.0,0.00016324,2]
[367886062,1750955432375,-500.0,0.00016324,2]
[367886064,1750955432384,-500.0,0.00016324,2]
[367886066,1750955432393,-500.0,0.00016324,2]
[367886068,1750955432402,-500.0,0.00016324,2]
[367886069,1750955432412,-500.0,0.00016324,2]
[367886073,1750955432431,-500.0,0.00016324,2]
[367886075,1750955432441,-500.0,0.00016324,2]
[367886077,1750955432451,-500.0,0.00016324,2]
[367886079,1750955432460,-500.0,0.00016324,2]
[367886080,1750955432470,-500.0,0.00016324,2]
[367886082,1750955432480,-500.0,0.00016324,2]
[367886084,1750955432490,-500.0,0.00016324,2]
[367886086,1750955432500,-433.14308545,0.00016324,2]
[367886088,1750955432510,-500.0,0.00016324,2]
[367886090,1750955432519,-500.0,0.00016324,2]
[367886092,1750955432531,-327.74124349,0.00016324,2]
[367886093,1750955432541,-500.0,0.00016324,2]
[367886095,1750955432550,-500.0,0.00016324,2]
[367886096,1750955432560,-500.0,0.00016324,2]
[367886098,1750955432570,-500.0,0.00016324,2]
[367886099,1750955432582,-500.0,0.00016324,2]
[367886100,1750955432593,-500.0,0.00016324,2]
[367886101,1750955432604,-500.0,0.00016324,2]
[367886103,1750955432614,-500.0,0.00016324,2]
[367886105,1750955432624,-500.0,0.00016324,2]
[367886106,1750955432633,-500.0,0.00016324,2]
[367886107,1750955432643,-500.0,0.00016324,2]
[367886109,1750955432652,-500.0,0.00016324,2]
[367886110,1750955432662,-500.0,0.00016324,2]
[367886111,1750955432671,-500.0,0.00016324,2]
[367886113,1750955432681,-500.0,0.00016324,2]
[367886114,1750955432691,-500.0,0.00016324,2]
[367886115,1750955432700,-500.0,0.00016324,2]
[367886116,1750955432710,-500.0,0.00016324,2]
[367886117,1750955432719,-500.0,0.00016324,2]
[367886118,1750955432729,-500.0,0.00016324,2]
[367886119,1750955432739,-347.24121333,0.00016324,2]
[367886120,1750955432748,-516.91068207,0.00016324,2]
[367886121,1750955432758,-500.0,0.00016324,2]
[367886122,1750955432767,-500.0,0.00016324,2]
[367886123,1750955432777,-500.0,0.00016324,2]
[367886124,1750955432786,-500.0,0.00016324,2]
[367886125,1750955432796,-500.0,0.00016324,2]
[367886126,1750955432806,-500.0,0.00016324,2]
[367886127,1750955432815,-500.0,0.00016324,2]
[367886128,1750955432825,-500.0,0.00016324,2]
[367886130,1750955432835,-500.0,0.00016324,2]
[367886132,1750955432844,-500.0,0.00016324,2]
[367886134,1750955432853,-500.0,0.00016324,2]
[367886136,1750955432863,-500.0,0.00016324,2]
[367886138,1750955432872,-500.0,0.00016324,2]
[367886139,1750955432881,-500.0,0.00016324,2]
[367886140,1750955432891,-500.0,0.00016324,2]
[367886141,1750955432900,-500.0,0.00016324,2]
[367886142,1750955432909,-500.0,0.00016324,2]
[367886143,1750955432918,-500.0,0.00016324,2]
[367886144,1750955432927,-500.0,0.00016324,2]
[367886145,1750955432937,-500.0,0.00016324,2]
[367886146,1750955432947,-500.0,0.00016324,2]
[367886147,1750955432956,-500.0,0.00016324,2]
[367886148,1750955432966,-500.0,0.00016324,2]
[367886149,1750955432976,-500.0,0.00016324,2]
[367886150,1750955432985,-500.0,0.00016324,2]
[367886151,1750955432995,-500.0,0.00016324,2]
[367886152,1750955433005,-500.0,0.00016324,2]
[367886153,1750955433014,-500.0,0.00016324,2]
[367886154,1750955433024,-500.0,0.00016324,2]
[367886155,1750955433034,-500.0,0.00016324,2]
[367886156,1750955433048,-500.0,0.00016324,2]
[367886157,1750955433059,-500.0,0.00016324,2]
[367886158,1750955433069,-500.0,0.00016324,2]
[367886159,1750955433080,-500.0,0.00016324,2]
[367886160,1750955433090,-500.0,0.00016324,2]
[367886161,1750955433101,-500.0,0.00016324,2]
[367886162,1750955433111,-500.0,0.00016324,2]
[367886163,1750955433120,-500.0,0.00016324,2]
[367886164,1750955433130,-500.0,0.00016324,2]
[367886165,1750955433140,-500.0,0.00016324,2]
[367886166,1750955433150,-500.0,0.00016324,2]
[367886167,1750955433159,-500.0,0.00016324,2]
[367886168,1750955433169,-500.0,0.00016324,2]
[367886169,1750955433178,-500.0,0.00016324,2]
[367886170,1750955433188,-500.0,0.00016324,2]
[367886171,1750955433197,-500.0,0.00016324,2]
[367886172,1750955433207,-500.0,0.00016324,2]
[367886173,1750955433217,-500.0,0.00016324,2]
[367886174,1750955433226,-500.0,0.00016324,2]
[367886175,1750955433236,-316.70536275,0.00016324,2]
[367886176,1750955433246,-500.0,0.00016324,2]
[367886177,1750955433256,-500.0,0.00016324,2]
[367886178,1750955433266,-500.0,0.00016324,2]
[367886179,1750955433276,-500.0,0.00016324,2]
[367886180,1750955433285,-500.0,0.00016324,2]
[367886181,1750955433295,-500.0,0.00016324,2]
[367886182,1750955433305,-500.0,0.00016324,2]
[367886183,1750955433315,-500.0,0.00016324,2]
[367886184,1750955433325,-500.0,0.00016324,2]
[367886185,1750955433334,-500.0,0.00016324,2]
[367886186,1750955433344,-500.0,0.00016324,2]
[367886187,1750955433353,-500.0,0.00016324,2]
[367886188,1750955433362,-500.0,0.00016324,2]
[367886189,1750955433372,-500.0,0.00016324,2]
[367886190,1750955433381,-500.0,0.00016324,2]
[367886191,1750955433391,-418.21467379,0.00016324,2]
[367886192,1750955433401,-500.0,0.00016324,2]
[367886193,1750955433411,-500.0,0.00016324,2]
[367886194,1750955433421,-500.0,0.00016324,2]
[367886195,1750955433430,-787.09054994,0.00016324,2]
[367886196,1750955433440,-787.09054994,0.00016324,2]
[367886197,1750955433451,-787.09054994,0.00016324,2]
[367886198,1750955433460,-596.67886977,0.00016324,2]
[367886199,1750955433470,-787.09054994,0.00016324,2]
[367886200,1750955433480,-141.94159204,0.00016324,2]
[367886201,1750955433497,-314.54692683,0.00016324,2]
[367886202,1750955433510,-140.1903509,0.00016324,2]
[367886203,1750955433520,-787.09054994,0.00016324,2]
[367886204,1750955433533,-596.67886977,0.00016324,2]
[367886205,1750955433543,-787.09054994,0.00016324,2]
[367886206,1750955433552,-787.09054994,0.00016324,2]
[367886207,1750955433561,-787.09054994,0.00016324,2]
[367886208,1750955433571,-787.09054994,0.00016324,2]
[367886209,1750955433582,-787.09054994,0.00016324,2]
[367886210,1750955433591,-787.09054994,0.00016324,2]
[367886211,1750955433601,-787.09054994,0.00016324,2]
[367886212,1750955433611,-787.09054994,0.00016324,2]
[367886213,1750955433622,-787.09054994,0.00016324,2]
[367886214,1750955433632,-787.09054994,0.00016324,2]
[367886215,1750955433642,-787.09054994,0.00016324,2]
[367886216,1750955433651,-787.09054994,0.00016324,2]
[367886217,1750955433661,-787.09054994,0.00016324,2]
[367886218,1750955433671,-787.09054994,0.00016324,2]
[367886219,1750955433681,-211.39001436,0.00016324,2]
[367886220,1750955433693,-575.70053558,0.00016324,2]
[367886221,1750955433703,-407.28270838,0.00016324,2]
[367886222,1750955433716,-379.80784156,0.00016324,2]
[367886223,1750955433725,-369.09314106,0.00016324,2]
[367886224,1750955433747,-417.99740888,0.00016324,2]
[367886225,1750955433757,-787.09054994,0.00016324,2]
[367886226,1750955433768,-787.09054994,0.00016324,2]
[367886227,1750955433779,-236.45114921,0.00016324,2]
[367886228,1750955433792,-360.22772056,0.00016324,2]
[367886229,1750955433802,-596.67886977,0.00016324,2]
[367886230,1750955433812,-787.09054994,0.00016324,2]
[367886231,1750955433822,-787.09054994,0.00016324,2]
[367886232,1750955433832,-596.67886977,0.00016324,2]
[367886233,1750955433842,-787.09054994,0.00016324,2]
[367886234,1750955433851,-596.67886977,0.00016324,2]
[367886235,1750955433861,-787.09054994,0.00016324,2]
[367886236,1750955433872,-596.67886977,0.00016324,2]
[367886237,1750955433881,-787.09054994,0.00016324,2]
[367886238,1750955433891,-596.67886977,0.00016324,2]
[367886239,1750955433901,-787.09054994,0.00016324,2]
[367886240,1750955433911,-596.67886977,0.00016324,2]
[367886241,1750955433920,-787.09054994,0.00016324,2]
[367886242,1750955433930,-596.67886977,0.00016324,2]
[367886243,1750955433940,-787.09054994,0.00016324,2]
[367886244,1750955433950,-596.67886977,0.00016324,2]
[367886245,1750955433960,-787.09054994,0.00016324,2]
[367886246,1750955433970,-596.67886977,0.00016324,2]
[367886247,1750955433979,-787.09054994,0.00016324,2]
[367886248,1750955433989,-596.67886977,0.00016324,2]
[367886249,1750955433999,-787.09054994,0.00016324,2]
[367886250,1750955434010,-596.67886977,0.00016324,2]
[367886251,1750955434020,-787.09054994,0.00016324,2]
[367886252,1750955434030,-596.67886977,0.00016324,2]
[367886253,1750955434039,-787.09054994,0.00016324,2]
[367886254,1750955434049,-596.67886977,0.00016324,2]
[367886255,1750955434059,-787.09054994,0.00016324,2]
[367886256,1750955434068,-596.67886977,0.00016324,2]
[367886257,1750955434077,-787.09054994,0.00016324,2]
[367886258,1750955434087,-596.67886977,0.00016324,2]
[367886259,1750955434097,-3149.47733035,0.00016324,2]
[367886260,1750955434106,-787.09054994,0.00016324,2]
[367886261,1750955434116,-596.67886977,0.00016324,2]
[367886262,1750955434126,-3149.47733035,0.00016324,2]
[367886263,1750955434137,-787.09054994,0.00016324,2]
[367886264,1750955434147,-596.67886977,0.00016324,2]
[367886265,1750955434156,-3149.47733035,0.00016324,2]
[367886266,1750955434166,-787.09054994,0.00016324,2]
[367886267,1750955434176,-596.67886977,0.00016324,2]
[367886268,1750955434186,-3149.47733035,0.00016324,2]
[367886269,1750955434195,-787.09054994,0.00016324,2]
[367886270,1750955434204,-596.67886977,0.00016324,2]
[367886271,1750955434214,-2760.83024173,0.00016324,2]
[367886296,1750955438096,-1569.22752967,0.00016224,2]
[367886298,1750955438106,-1615.03247113,0.00016324,2]
[367886300,1750955438117,-9.67062428,0.00016324,2]
[367886302,1750955438126,-525.27844013,0.00016325,2]
[367886304,1750955438138,-475.42066331,0.00016325,2]
[367886307,1750955438149,-151.0,0.00016334,2]
[367886309,1750955438159,-500.0,0.00016373,2]
[367886311,1750955438168,-175.98632654,0.00016373,2]
[367886313,1750955438179,-275.32868555,0.00016373,2]
[367886315,1750955438191,-48.68498791,0.00016373,2]
[367886317,1750955438201,-500.0,0.00016373,2]
[367886319,1750955438210,-500.0,0.00016373,2]
[367886321,1750955438221,-500.0,0.00016373,2]
[367886323,1750955438230,-500.0,0.00016373,2]
[367886325,1750955438241,-440.61238396,0.00016373,2]
[367886327,1750955438250,-500.0,0.00016373,2]
[367886329,1750955438259,-500.0,0.00016373,2]
[367886331,1750955438268,-500.0,0.00016373,2]
[367886333,1750955438278,-500.68364037,0.00016373,2]
[367886335,1750955438287,-621.48834105,0.00016373,2]
[367886337,1750955438297,-500.41457115,0.00016373,2]
[367886339,1750955438306,-500.0,0.00016373,2]